bitfinex/quotes_BTCUSD_20251004
["timestamp","ask_amount","ask_price","bid_price","bid_amount"]
[1759558098249,0.47090161,122400.0,122390.0,0.43307887]
[1759558100254,0.45571002,122400.0,122390.0,0.43307887]
[1759558103426,0.45570371,122400.0,122390.0,0.43307887]
[1759558105331,0.45570371,122400.0,122390.0,0.11675887]
[1759558105540,0.45570371,122400.0,122390.0,0.43299887]
[1759558106046,0.45570371,122400.0,122390.0,0.43295887]
[1759558107392,0.45052371,122400.0,122390.0,0.43315887]
[1759558107605,0.45268371,122400.0,122390.0,0.43295887]
[1759558107825,0.44810724,122400.0,122390.0,0.43295887]
[1759558111382,0.44810724,122400.0,122390.0,0.11675887]
[1759558111606,0.44810724,122400.0,122390.0,0.43291887]
[1759558115837,0.44810724,122400.0,122390.0,0.43283887]
[1759558118794,0.44810724,122400.0,122390.0,0.11675887]
[1759558119003,0.44810724,122400.0,122390.0,0.43283887]
[1759558119417,0.25174979,122400.0,122390.0,0.43283887]
[1759558120248,0.25174979,122400.0,122390.0,0.11675887]
[1759558120403,0.25174979,122400.0,122390.0,0.43279887]
[1759558121000,0.25174979,122400.0,122390.0,0.11675887]
[1759558121190,0.25174979,122400.0,122390.0,0.43279887]
[1759558121457,0.25174979,122400.0,122390.0,0.11675887]
[1759558121617,0.25174979,122400.0,122390.0,0.43279887]
[1759558123043,0.16341204,122390.0,122380.0,0.03269084]
[1759558123265,0.2496341,122390.0,122380.0,0.11761084]
[1759558123468,0.2516741,122390.0,122380.0,0.11761084]
[1759558124289,0.2516741,122390.0,122380.0,0.35269084]
[1759558124492,0.2516741,122390.0,122380.0,0.35569084]
[1759558127580,0.2465341,122390.0,122380.0,0.35589084]
[1759558127784,0.2485741,122390.0,122380.0,0.35569084]
[1759558127997,0.2516741,122390.0,122380.0,0.35569084]
[1759558128643,0.2516741,122390.0,122380.0,0.35589439]
[1759558134765,0.2465341,122390.0,122380.0,0.35609439]
[1759558134972,0.2465341,122390.0,122380.0,0.35621439]
[1759558135338,0.2465341,122390.0,122380.0,0.35609439]
[1759558136532,0.2465341,122390.0,122380.0,0.35621439]
[1759558136836,0.2465341,122390.0,122380.0,0.61093439]
[1759558137026,0.27105509,122390.0,122380.0,0.69585439]
[1759558137274,0.27105509,122390.0,122380.0,0.69573439]
[1759558137941,0.10764305,122390.0,122380.0,1.03573439]
[1759558138163,0.10764305,122390.0,122380.0,1.0096773]
[1759558138385,0.10764305,122390.0,122380.0,1.0945973]
[1759558138802,0.10764305,122390.0,122380.0,1.0935973]
[1759558144019,0.0005957,122400.0,122390.0,0.34]
[1759558144241,0.08371776,122400.0,122390.0,0.39872082]
[1759558144449,0.08371776,122400.0,122390.0,0.39904082]
[1759558145498,0.08371776,122400.0,122390.0,0.34032]
[1759558146431,0.08371776,122400.0,122390.0,3.4971962]
[1759558146692,0.0005957,122400.0,122390.0,3.49918558]
[1759558146903,0.0005957,122400.0,122390.0,4.0904816]
[1759558147130,0.0005957,122400.0,122390.0,4.1753616]
[1759558147574,0.0005957,122400.0,122390.0,4.1743616]
[1759558147804,0.0015957,122400.0,122390.0,4.1863616]
[1759558148304,0.0015957,122400.0,122390.0,3.7618416]
[1759558148544,0.0015957,122400.0,122390.0,4.1863616]
[1759558149826,0.0015957,122400.0,122390.0,4.1863216]
[1759558152892,0.08667776,122400.0,122390.0,0.4352356]
[1759558153097,0.25303645,122400.0,122390.0,1.00756]
[1759558153302,0.08963776,122400.0,122390.0,1.00756]
[1759558153968,0.08667776,122400.0,122390.0,1.00776]
[1759558154138,0.08471776,122400.0,122390.0,1.00776]
[1759558155502,0.08471776,122400.0,122390.0,1.00788]
[1759558157540,0.0015957,122400.0,122390.0,4.103046]
[1759558157740,0.0015957,122400.0,122390.0,4.16559942]
[1759558159208,0.0015957,122400.0,122390.0,4.16176682]
[1759558159973,0.0015957,122400.0,122390.0,4.16200682]
[1759558162104,0.0015957,122400.0,122390.0,3.50620682]
[1759558162312,0.0015957,122400.0,122390.0,4.16196682]
[1759558166302,0.0035557,122400.0,122390.0,3.50608682]
[1759558166531,0.0035557,122400.0,122390.0,4.16156682]
[1759558166725,0.0065157,122400.0,122390.0,4.16156682]
[1759558167614,0.0065157,122400.0,122390.0,4.16176682]
[1759558169565,0.0035557,122400.0,122390.0,4.16176682]
[1759558170368,0.0067457,122400.0,122390.0,4.16156682]
[1759558170813,0.0067457,122400.0,122390.0,4.16176682]
[1759558171046,0.0035557,122400.0,122390.0,4.16176682]
[1759558171275,0.0067457,122400.0,122390.0,4.16176682]
[1759558171505,0.0067457,122400.0,122390.0,4.16156682]
[1759558171718,0.0067457,122400.0,122390.0,3.50588682]
[1759558171896,0.0067457,122400.0,122390.0,4.16152682]
[1759558172217,0.0067457,122400.0,122390.0,4.16172682]
[1759558172429,0.0035557,122400.0,122390.0,3.447366]
[1759558172567,0.0035557,122400.0,122390.0,4.102966]
[1759558174473,0.0035557,122400.0,122390.0,3.5060976]
[1759558174680,0.0035557,122400.0,122390.0,4.1616976]
[1759558175844,0.0035557,122400.0,122390.0,3.5060976]
[1759558176050,0.0035557,122400.0,122390.0,4.1616576]
[1759558178892,0.0035557,122400.0,122390.0,4.0767376]
[1759558179113,0.0035557,122400.0,122390.0,4.1616176]
[1759558179580,0.0035557,122400.0,122390.0,3.5060976]
[1759558179791,0.0035557,122400.0,122390.0,4.1616176]
[1759558180004,0.0015957,122400.0,122390.0,4.1616176]
[1759558184293,0.0015957,122400.0,122390.0,3.5060976]
[1759558184503,0.0015957,122400.0,122390.0,4.1615776]
[1759558184915,0.09005776,122400.0,122390.0,3.5058976]
[1759558185161,0.09005776,122400.0,122390.0,4.1613776]
[1759558185597,0.09005776,122400.0,122390.0,3.5058976]
[1759558185920,0.25345645,122400.0,122390.0,4.1613376]
[1759558186040,0.09005776,122400.0,122390.0,4.1613376]
[1759558186480,0.09005776,122400.0,122390.0,4.1615376]
[1759558187712,0.09005776,122400.0,122390.0,3.5060976]
[1759558187921,0.09005776,122400.0,122390.0,4.1615376]
[1759558190750,0.25345645,122400.0,122390.0,4.1613376]
[1759558190947,0.09005776,122400.0,122390.0,4.1613376]
[1759558192376,0.09005776,122400.0,122390.0,4.1615376]
[1759558192377,0.08686776,122400.0,122390.0,4.1615376]
[1759558193000,0.08471776,122400.0,122390.0,4.1615376]
[1759558193777,0.25345645,122400.0,122390.0,3.5058976]
[1759558193911,0.25345645,122400.0,122390.0,4.1612576]
[1759558194569,0.09005776,122400.0,122390.0,4.1612576]
[1759558198440,0.25345645,122400.0,122390.0,4.1612576]
[1759558200640,0.09005776,122400.0,122390.0,4.1612576]
[1759558201482,0.08471776,122400.0,122390.0,4.1615776]
[1759558201723,0.08471776,122400.0,122390.0,4.102846]
[1759558204666,0.08471776,122400.0,122390.0,4.17612031]
[1759558206386,0.08471776,122400.0,122390.0,4.102846]
[1759558207404,0.0015957,122400.0,122390.0,4.10596852]
[1759558209653,0.0015957,122400.0,122390.0,4.17924283]
[1759558214496,0.0015957,122400.0,122390.0,4.17612031]
[1759558214695,0.0015957,122400.0,122390.0,3.52076031]
[1759558214931,0.0015957,122400.0,122390.0,4.17612031]
[1759558220023,0.0015957,122400.0,122390.0,3.52076031]
[1759558220228,0.0015957,122400.0,122390.0,4.17612031]
[1759558228149,0.0015957,122400.0,122390.0,4.17600031]
[1759558228566,0.0015957,122400.0,122390.0,4.17612031]
[1759558228940,0.0015957,122400.0,122390.0,3.52076031]
[1759558229212,0.0015957,122400.0,122390.0,4.17612031]
[1759558233167,0.0015957,122400.0,122390.0,3.98954663]
[1759558233382,0.0015957,122400.0,122390.0,3.82157756]
[1759558237071,0.0015957,122400.0,122390.0,3.82145756]
[1759558237300,0.0015957,122400.0,122390.0,3.82157756]
[1759558237965,0.0015957,122400.0,122390.0,4.16157756]
[1759558238180,0.0015957,122400.0,122390.0,4.16145756]
[1759558238621,0.0015957,122400.0,122390.0,4.16157756]
[1759558241215,0.0015957,122400.0,122390.0,4.07669756]
[1759558241428,0.0015957,122400.0,122390.0,4.16157756]
[1759558242505,0.0015957,122400.0,122390.0,4.16145756]
[1759558242719,0.0015957,122400.0,122390.0,4.16157756]
[1759558243385,0.0015957,122400.0,122390.0,4.17612031]
[1759558243842,0.0015957,122400.0,122390.0,3.52064031]
[1759558244053,0.0015957,122400.0,122390.0,4.17612031]
[1759558245352,0.0015957,122400.0,122390.0,4.17600031]
[1759558245557,0.0015957,122400.0,122390.0,4.17612031]
[1759558246855,0.0015957,122400.0,122390.0,4.17600031]
[1759558247061,0.0015957,122400.0,122390.0,4.17612031]
[1759558248591,0.0015957,122400.0,122390.0,4.17608031]
[1759558249340,0.0015957,122400.0,122390.0,4.17596031]
[1759558249526,0.0015957,122400.0,122390.0,4.17608031]
[1759558254628,0.0015957,122400.0,122390.0,4.17596031]
[1759558255072,0.0015957,122400.0,122390.0,4.17608031]
[1759558256488,0.0015957,122400.0,122390.0,4.09108031]
[1759558256701,0.0015957,122400.0,122390.0,4.17596031]
[1759558257409,0.0015957,122400.0,122390.0,4.20047358]
[1759558258844,0.0015957,122400.0,122390.0,4.20059358]
[1759558259062,0.0015957,122400.0,122390.0,4.20047358]
[1759558259721,0.0015957,122400.0,122390.0,3.54515358]
[1759558259946,0.0015957,122400.0,122390.0,4.20047358]
[1759558261558,0.0015957,122400.0,122390.0,4.20059358]
[1759558261774,0.0015957,122400.0,122390.0,3.54515358]
[1759558262020,0.0015957,122400.0,122390.0,4.20047358]
[1759558262957,0.0015957,122400.0,122390.0,3.77599358]
[1759558263165,0.0015957,122400.0,122390.0,4.20047358]
[1759558263374,0.0015957,122400.0,122390.0,4.20059358]
[1759558264019,0.0015957,122400.0,122390.0,4.20047358]
[1759558267404,0.0015957,122400.0,122390.0,4.20059358]
[1759558267831,0.0015957,122400.0,122390.0,3.54527358]
[1759558268037,0.0015957,122400.0,122390.0,4.20059358]
[1759558268490,0.0015957,122400.0,122390.0,4.20047358]
[1759558268692,0.0015957,122400.0,122390.0,4.20059358]
[1759558271280,0.0015957,122400.0,122390.0,4.20303992]
[1759558274355,0.0015957,122400.0,122390.0,4.20291992]
[1759558274564,0.0015957,122400.0,122390.0,4.20303992]
[1759558275464,0.0015957,122400.0,122390.0,4.20047358]
[1759558276234,0.0015957,122400.0,122390.0,4.20059358]
[1759558276633,0.0015957,122400.0,122390.0,4.20047358]
[1759558277537,0.0015957,122400.0,122390.0,4.20059358]
[1759558278565,0.0015957,122400.0,122390.0,4.20047358]
[1759558279664,0.0015957,122400.0,122390.0,4.20059358]
[1759558281288,0.0015957,122400.0,122390.0,4.20047358]
[1759558281732,0.0015957,122400.0,122390.0,4.20043358]
[1759558287988,0.0015957,122400.0,122390.0,4.20055358]
[1759558288225,0.0015957,122400.0,122390.0,4.20043358]
[1759558289378,0.0015957,122400.0,122390.0,3.77595358]
[1759558289583,0.0015957,122400.0,122390.0,4.20043358]
[1759558290311,0.0015957,122400.0,122390.0,4.20055358]
[1759558291471,0.0015957,122400.0,122390.0,4.20043358]
[1759558292746,0.0015957,122400.0,122390.0,3.54515358]
[1759558292935,0.0015957,122400.0,122390.0,4.20043358]
[1759558295797,0.0015957,122400.0,122390.0,4.20055358]
[1759558296434,0.0015957,122400.0,122390.0,4.20043358]
[1759558298252,0.0015957,122400.0,122390.0,4.20055358]
[1759558298525,0.0015957,122400.0,122390.0,4.20043358]
[1759558299405,0.0015957,122400.0,122390.0,4.20055358]
[1759558301666,0.0015957,122400.0,122390.0,4.20043358]
[1759558301872,0.0015957,122400.0,122390.0,4.20039358]
[1759558304413,0.0015957,122400.0,122390.0,4.20051358]
[1759558304616,0.0015957,122400.0,122390.0,4.20039358]
[1759558304830,0.0035757,122400.0,122390.0,4.20039358]
[1759558305407,0.0015957,122400.0,122390.0,4.20039358]
[1759558305618,0.08978776,122400.0,122390.0,3.54495358]
[1759558305817,0.08978776,122400.0,122390.0,3.52044031]
[1759558306030,0.08978776,122400.0,122390.0,4.17568031]
[1759558306261,0.25318645,122400.0,122390.0,0.48404213]
[1759558306472,0.25318645,122400.0,122390.0,1.06600782]
[1759558306678,0.27770427,122400.0,122390.0,1.06600782]
[1759558307156,0.27770427,122400.0,122390.0,0.83524782]
[1759558307335,0.27770427,122400.0,122390.0,1.06600782]
[1759558308568,0.27770427,122400.0,122390.0,0.012]
[1759558308780,0.27770427,122400.0,122390.0,3.422806]
[1759558308950,0.27770427,122400.0,122390.0,0.32764]
[1759558312755,0.27770427,122400.0,122390.0,0.24276]
[1759558312967,0.27770427,122400.0,122390.0,0.32764]
[1759558313190,0.27770427,122400.0,122390.0,0.012]
[1759558313403,0.27770427,122400.0,122390.0,0.32764]
[1759558317781,0.27770427,122400.0,122390.0,0.012]
[1759558317994,0.27770427,122400.0,122390.0,0.32764]
[1759558320835,0.27770427,122400.0,122390.0,0.012]
[1759558320952,0.27770427,122400.0,122390.0,0.32764]
[1759558324836,0.27770427,122400.0,122390.0,0.012]
[1759558325012,0.27770427,122400.0,122390.0,0.32764]
[1759558325784,0.27770427,122400.0,122390.0,0.012]
[1759558326010,0.27770427,122400.0,122390.0,0.32764]
[1759558333806,0.27770427,122400.0,122390.0,0.012]
[1759558334108,0.27770427,122400.0,122390.0,0.32768]
[1759558339885,0.27770427,122400.0,122390.0,0.012]
[1759558340068,0.27770427,122400.0,122390.0,0.24276]
[1759558340267,0.27770427,122400.0,122390.0,0.32768]
[1759558341718,0.16341204,122390.0,122380.0,0.03189439]
[1759558342028,0.2496641,122390.0,122380.0,0.68725439]
[1759558342254,0.2517241,122390.0,122380.0,0.68725439]
[1759558342447,0.27624483,122390.0,122380.0,0.03189439]
[1759558342707,0.27624483,122390.0,122380.0,0.11681439]
[1759558342928,0.27624483,122390.0,122380.0,0.34757439]
[1759558343599,0.16342539,122380.0,122370.0,0.10000531]
[1759558343819,0.24860745,122380.0,122370.0,0.41568531]
[1759558344050,0.25173745,122380.0,122370.0,0.41568531]
[1759558344259,0.27626098,122380.0,122370.0,0.41588888]
[1759558344433,0.27626098,122380.0,122370.0,0.10020888]
[1759558344646,0.27626098,122380.0,122370.0,0.41588888]
[1759558344856,0.27726098,122380.0,122370.0,0.42288888]
[1759558345219,0.27726098,122380.0,122370.0,0.42888888]
[1759558347797,0.27726098,122380.0,122370.0,0.34396888]
[1759558348019,0.27726098,122380.0,122370.0,0.42888888]
[1759558360126,0.27726098,122380.0,122370.0,0.39634309]
[1759558361359,0.27726098,122380.0,122370.0,0.41474121]
[1759558365164,0.27726098,122380.0,122370.0,0.08066309]
[1759558365382,0.27726098,122380.0,122370.0,0.39630309]
[1759558367206,0.27726098,122380.0,122370.0,0.41448988]
[1759558394318,0.27626098,122380.0,122370.0,0.40148988]
[1759558394744,0.27726098,122380.0,122370.0,0.40848988]
[1759558394969,0.27726098,122380.0,122370.0,0.32352988]
[1759558395145,0.27726098,122380.0,122370.0,0.40844988]
[1759558395573,0.27726098,122380.0,122370.0,0.09284988]
[1759558395775,0.27726098,122380.0,122370.0,0.40844988]
[1759558398928,0.27726098,122380.0,122370.0,0.15958309]
[1759558399150,0.27726098,122380.0,122370.0,0.39026309]
[1759558432642,0.27207098,122380.0,122370.0,0.39046309]
[1759558433873,0.27411098,122380.0,122370.0,0.39046309]
[1759558439225,0.27207098,122380.0,122370.0,0.39058309]
[1759558439631,0.27207098,122380.0,122370.0,0.44935091]
[1759558440064,0.10864559,122380.0,122370.0,0.44935091]
[1759558441269,0.08412206,122380.0,122370.0,0.44935091]
[1759558441630,0.08412206,122380.0,122370.0,0.47387268]
[1759558442406,0.08412206,122380.0,122370.0,0.15827268]
[1759558442614,0.08412206,122380.0,122370.0,0.82985655]
[1759558442819,0.08412206,122380.0,122370.0,0.81351268]
[1759558444473,0.08412206,122380.0,122370.0,0.42464]
[1759558445043,0.10864383,122380.0,122370.0,0.42464]
[1759558445250,0.10864383,122380.0,122370.0,0.76464]
[1759558445650,0.10864383,122380.0,122370.0,0.9952]
[1759558445861,0.001,122380.0,122370.0,4.090366]
[1759558446286,0.001,122380.0,122370.0,4.11488384]
[1759558446531,0.001,122380.0,122370.0,4.27832259]
[1759558449004,0.001,122380.0,122370.0,3.62312259]
[1759558449148,0.001,122380.0,122370.0,4.19336259]
[1759558449355,0.001,122380.0,122370.0,4.27828259]
[1759558451141,0.001,122380.0,122370.0,4.27925463]
[1759558452589,0.00054672,122390.0,122380.0,0.50342539]
[1759558452804,0.00054672,122390.0,122380.0,4.16981201]
[1759558452995,0.00054672,122390.0,122380.0,4.59441201]
[1759558453195,0.00054672,122390.0,122380.0,4.6189253]
[1759558454612,0.00054672,122390.0,122380.0,4.60723961]
[1759558454856,0.00054672,122390.0,122380.0,4.69311961]
[1759558455428,0.00054672,122390.0,122380.0,4.6198453]
[1759558455577,0.00054672,122390.0,122380.0,4.6198053]
[1759558456249,0.00054672,122390.0,122380.0,4.69307961]
[1759558456481,0.00054672,122390.0,122380.0,4.6198053]
[1759558457118,0.00054672,122390.0,122380.0,3.6251253]
[1759558457326,0.00054672,122390.0,122380.0,4.61878468]
[1759558457533,0.00054672,122390.0,122380.0,4.61934804]
[1759558458228,0.00054672,122390.0,122380.0,4.53446804]
[1759558458472,0.00054672,122390.0,122380.0,4.61934804]
[1759558458890,0.00054672,122390.0,122380.0,3.62466804]
[1759558459108,0.00054672,122390.0,122380.0,3.68314832]
[1759558459321,0.00054672,122390.0,122380.0,4.33818832]
[1759558462894,0.00054672,122390.0,122380.0,4.33814832]
[1759558463722,0.00054672,122390.0,122380.0,4.33810832]
[1759558464145,0.00054672,122390.0,122380.0,3.68314832]
[1759558464344,0.00563672,122390.0,122380.0,3.60420293]
[1759558464588,0.00563672,122390.0,122380.0,3.77620265]
[1759558464814,0.00563672,122390.0,122380.0,4.11620265]
[1759558465227,0.00563672,122390.0,122380.0,3.77620265]
[1759558465396,0.00563672,122390.0,122380.0,4.03132265]
[1759558465664,0.00563672,122390.0,122380.0,4.11620265]
[1759558466997,0.00054672,122390.0,122380.0,4.11620265]
[1759558468136,0.00054672,122390.0,122380.0,3.46124265]
[1759558468345,0.00054672,122390.0,122380.0,4.11620265]
[1759558469604,0.00268672,122390.0,122380.0,3.91177565]
[1759558469804,0.00578672,122390.0,122380.0,3.48729565]
[1759558470009,0.00578672,122390.0,122380.0,3.91177565]
[1759558470453,0.00578672,122390.0,122380.0,3.82689565]
[1759558470654,0.00578672,122390.0,122380.0,3.91177565]
[1759558472599,0.00578672,122390.0,122380.0,3.91181565]
[1759558475563,0.08890878,122390.0,122380.0,3.57194236]
[1759558475772,0.08890878,122390.0,122380.0,3.88730236]
[1759558475947,0.11342678,122390.0,122380.0,3.88730236]
[1759558481614,0.11342678,122390.0,122380.0,3.46278236]
[1759558481823,0.11342678,122390.0,122380.0,3.88730236]
[1759558482666,0.11342678,122390.0,122380.0,3.23230236]
[1759558482869,0.11342678,122390.0,122380.0,3.88730236]
[1759558483279,0.27683882,122390.0,122380.0,3.65682236]
[1759558483448,0.27683882,122390.0,122380.0,3.88730236]
[1759558485960,0.11342678,122390.0,122380.0,3.88730236]
[1759558486177,0.27683882,122390.0,122380.0,3.88730236]
[1759558486861,0.11342678,122390.0,122380.0,3.88730236]
[1759558487294,0.27683882,122390.0,122380.0,3.88730236]
[1759558487903,0.11342678,122390.0,122380.0,3.88730236]
[1759558488086,0.10818678,122390.0,122380.0,3.88730236]
[1759558488730,0.11033678,122390.0,122380.0,3.88730236]
[1759558492529,0.11343678,122390.0,122380.0,3.94578264]
[1759558494226,0.10818678,122390.0,122380.0,3.94578264]
[1759558494946,0.11033678,122390.0,122380.0,3.94578264]
[1759558495635,0.10818678,122390.0,122380.0,3.94578264]
[1759558497866,0.08366878,122390.0,122380.0,3.94578264]
[1759558504301,0.00054672,122390.0,122380.0,3.88730236]
[1759558504836,0.00054672,122390.0,122380.0,3.96057667]
[1759558506653,0.00054672,122390.0,122380.0,3.88730236]
[1759558509570,0.00054672,122390.0,122380.0,3.88726236]
[1759558517916,0.00054672,122390.0,122380.0,4.13028626]
[1759558521251,9.884e-05,122390.0,122380.0,4.13028626]
[1759558521672,9.884e-05,122390.0,122380.0,4.05701195]
[1759558522137,9.884e-05,122390.0,122380.0,4.08716385]
[1759558522352,4.904e-05,122400.0,122390.0,0.51094258]
[1759558522566,4.904e-05,122400.0,122390.0,3.7054422]
[1759558523011,0.00045608,122400.0,122390.0,3.7054422]
[1759558524085,0.00745608,122400.0,122390.0,3.7064422]
[1759558524927,0.00045608,122400.0,122390.0,3.7054422]
[1759558525142,0.00445608,122400.0,122390.0,3.7064422]
[1759558525355,0.00745608,122400.0,122390.0,3.7064422]
[1759558525949,0.00445608,122400.0,122390.0,3.7064422]
[1759558526600,0.00445608,122400.0,122390.0,3.4760022]
[1759558526803,0.00445608,122400.0,122390.0,4.53259502]
[1759558528786,0.00445608,122400.0,122390.0,4.44771502]
[1759558528999,0.00445608,122400.0,122390.0,4.52506448]
[1759558533694,0.00445608,122400.0,122390.0,3.53058448]
[1759558534120,0.00445608,122400.0,122390.0,4.52498448]
[1759558540021,0.00445608,122400.0,122390.0,4.52494448]
[1759558540230,0.00445608,122400.0,122390.0,3.53058448]
[1759558540431,0.00445608,122400.0,122390.0,4.52494448]
[1759558540889,0.00445608,122400.0,122390.0,4.53249302]
[1759558541123,0.00080619,122400.0,122390.0,4.54229446]
[1759558541337,0.00080619,122400.0,122390.0,4.56680429]
[1759558542012,0.00080619,122400.0,122390.0,4.66938115]
[1759558542710,0.00080619,122400.0,122390.0,4.69953305]
[1759558542950,0.00080619,122400.0,122390.0,4.81157175]
[1759558543181,0.06649765,122440.0,122430.0,0.34]
[1759558543406,0.06649765,122440.0,122430.0,3.545979]
[1759558543603,0.06649765,122440.0,122430.0,3.60455075]
[1759558544172,0.06649765,122460.0,122430.0,3.28931075]
[1759558544384,0.14961971,122460.0,122440.0,3.56187353]
[1759558544588,0.14961971,122460.0,122450.0,2.890739]
[1759558544808,0.31294287,122460.0,122450.0,0.6548]
[1759558545043,0.14961971,122460.0,122450.0,0.6548]
[1759558545415,0.08312206,122460.0,122450.0,0.6548]
[1759558545607,0.25344069,122460.0,122450.0,0.6548]
[1759558545853,0.25559069,122460.0,122450.0,0.01337068]
[1759558546122,0.25559069,122460.0,122450.0,4.05890968]
[1759558546344,0.25559069,122460.0,122450.0,0.6548]
[1759558546568,0.25883069,122460.0,122450.0,0.66786652]
[1759558547000,0.09851206,122460.0,122450.0,0.66786652]
[1759558547224,0.09527206,122460.0,122450.0,0.66886652]
[1759558547473,0.02,122460.0,122450.0,0.67273991]
[1759558547704,0.02,122460.0,122450.0,3.5673523]
[1759558547945,0.02,122460.0,122450.0,2.90480552]
[1759558548230,0.02,122460.0,122450.0,3.55956552]
[1759558548689,0.02,122460.0,122450.0,2.90480552]
[1759558548690,0.02,122460.0,122450.0,3.55956552]
[1759558553956,0.02122034,122460.0,122450.0,3.55956552]
[1759558560197,0.02338034,122460.0,122450.0,3.55956552]
[1759558560832,0.02122034,122460.0,122450.0,2.90480552]
[1759558561033,0.02122034,122460.0,122450.0,3.55940552]
[1759558561758,0.02122034,122460.0,122450.0,3.89940552]
[1759558563546,0.02122034,122460.0,122450.0,4.13400704]
[1759558563768,0.02122034,122460.0,122450.0,4.15850584]
[1759558564409,0.01122034,122460.0,122450.0,4.15850584]
[1759558564658,0.00522034,122460.0,122450.0,4.15750584]
[1759558564898,0.00922034,122460.0,122450.0,4.15750584]
[1759558568787,0.00922034,122460.0,122450.0,4.07262584]
[1759558569044,0.00922034,122460.0,122450.0,4.49690584]
[1759558570439,0.00922034,122460.0,122450.0,4.43833409]
[1759558572642,0.00922034,122460.0,122450.0,4.51157431]
[1759558575080,0.00922034,122460.0,122450.0,4.49883651]
[1759558576011,0.00922034,122460.0,122450.0,4.50344563]
[1759558577177,0.00922034,122460.0,122450.0,4.49883651]
[1759558577645,0.00922034,122460.0,122450.0,4.50281891]
[1759558579027,0.00922034,122460.0,122450.0,3.50487651]
[1759558579254,0.00922034,122460.0,122450.0,4.49875651]
[1759558579726,0.00922034,122460.0,122450.0,3.50487651]
[1759558579921,0.01439034,122460.0,122450.0,0.79941634]
[1759558580200,0.26083103,122460.0,122450.0,0.01306652]
[1759558580412,0.0975124,122460.0,122450.0,1.16974652]
[1759558580645,0.0975124,122460.0,122450.0,2.890739]
[1759558580872,0.0975124,122460.0,122450.0,3.547419]
[1759558581100,0.0975124,122460.0,122450.0,0.65668]
[1759558583419,0.0975124,122460.0,122450.0,0.66895851]
[1759558584798,0.0975124,122460.0,122450.0,0.01227851]
[1759558585012,0.0975124,122460.0,122450.0,3.547379]
[1759558585216,0.0975124,122460.0,122450.0,0.65664]
[1759558586265,0.0975124,122460.0,122450.0,0.66915334]
[1759558587326,0.01138034,122460.0,122450.0,1.00915334]
[1759558587539,0.00922034,122460.0,122450.0,3.89989234]
[1759558588191,0.00922034,122460.0,122450.0,4.13646453]
[1759558588401,0.00922034,122460.0,122450.0,3.31649256]
[1759558588605,0.26059103,122460.0,122450.0,0.42519356]
[1759558588819,0.0972724,122460.0,122450.0,0.67071334]
[1759558594878,0.0972724,122460.0,122450.0,0.58563334]
[1759558595019,0.0972724,122460.0,122450.0,0.67047334]
[1759558595221,0.26059103,122460.0,122450.0,0.67047334]
[1759558596614,0.26059103,122460.0,122450.0,0.01251334]
[1759558596849,0.26059103,122460.0,122450.0,0.67047334]
[1759558597116,0.26059103,122460.0,122450.0,0.65796]
[1759558597651,0.26059103,122460.0,122450.0,0.65788]
[1759558598818,0.26059103,122460.0,122450.0,0.67000998]
[1759558600259,0.25566103,122460.0,122450.0,0.67000998]
[1759558600471,0.25566103,122460.0,122450.0,3.90247559]
[1759558600472,0.00922034,122460.0,122450.0,3.90247559]
[1759558600647,0.00922034,122460.0,122450.0,3.95936811]
[1759558602306,0.00922034,122460.0,122450.0,3.97737084]
[1759558602524,0.00922034,122460.0,122450.0,3.99848936]
[1759558605599,0.00922034,122460.0,122450.0,4.09196275]
[1759558605827,0.00140655,122460.0,122450.0,4.16518036]
[1759558606044,0.00140655,122460.0,122450.0,3.34058675]
[1759558606292,0.00140655,122460.0,122450.0,4.33790675]
[1759558606541,0.00140655,122460.0,122450.0,4.50123872]
[1759558606749,0.00140655,122460.0,122450.0,4.50119872]
[1759558607241,0.00140655,122460.0,122450.0,3.50391872]
[1759558607461,0.00140655,122460.0,122450.0,4.50123872]
[1759558607676,0.003,122480.0,122460.0,0.34]
[1759558607863,0.00349157,122480.0,122470.0,3.60718542]
[1759558608210,0.00546157,122480.0,122470.0,3.60718542]
[1759558608837,0.00746157,122480.0,122470.0,3.60718542]
[1759558609238,0.00546157,122480.0,122470.0,3.60718542]
[1759558609642,0.01346157,122480.0,122470.0,3.60718542]
[1759558610334,0.01346157,122480.0,122470.0,3.18278542]
[1759558610544,0.01346157,122480.0,122470.0,3.60702542]
[1759558612732,0.00849157,122480.0,122470.0,3.60702542]
[1759558613272,0.00889818,122480.0,122470.0,3.60702542]
[1759558614317,0.00889818,122480.0,122470.0,3.94702542]
[1759558615333,0.00589818,122480.0,122470.0,3.94702542]
[1759558615553,0.00089818,122480.0,122470.0,3.94702542]
[1759558615766,0.00289818,122480.0,122470.0,3.94702542]
[1759558615988,0.00489818,122480.0,122470.0,3.888459]
[1759558616438,0.00489818,122480.0,122470.0,3.94697354]
[1759558616649,0.00489818,122480.0,122470.0,3.52285354]
[1759558616860,0.00489818,122480.0,122470.0,3.28925354]
[1759558617023,0.00489818,122480.0,122470.0,3.94709354]
[1759558617482,0.00489818,122480.0,122470.0,3.52281354]
[1759558617661,0.00489818,122480.0,122470.0,3.86221354]
[1759558617873,0.00489818,122480.0,122470.0,3.86217354]
[1759558618075,0.00489818,122480.0,122470.0,3.94701354]
[1759558619097,0.00489818,122480.0,122470.0,3.701739]
[1759558620690,0.00489818,122480.0,122470.0,3.043979]
[1759558620879,0.00489818,122480.0,122470.0,3.701659]
[1759558622041,0.00489818,122480.0,122470.0,3.86496429]
[1759558622465,0.00489818,122480.0,122470.0,3.92347883]
[1759558622901,0.00489818,122480.0,122470.0,3.92659297]
[1759558624135,0.00289818,122480.0,122470.0,3.92659297]
[1759558624342,0.00089818,122480.0,122470.0,3.92659297]
[1759558624744,0.00089818,122480.0,122470.0,3.92759297]
[1759558626235,0.00089818,122480.0,122470.0,3.92447883]
[1759558627081,0.00089818,122480.0,122470.0,3.92759297]
[1759558627775,0.00089818,122480.0,122470.0,4.01071503]
[1759558627993,0.00089818,122480.0,122470.0,3.95220049]
[1759558628197,0.00089818,122480.0,122470.0,3.97669257]
[1759558628956,0.00014194,122480.0,122470.0,3.97669257]
[1759558629154,0.00014194,122480.0,122470.0,4.07922888]
[1759558632891,0.00014194,122480.0,122470.0,3.42154888]
[1759558633092,0.00014194,122480.0,122470.0,4.41822888]
[1759558633853,0.00014194,122480.0,122470.0,4.41818888]
[1759558634833,0.00014194,122480.0,122470.0,3.99402888]
[1759558635036,0.00014194,122480.0,122470.0,4.41814888]
[1759558637556,0.00014194,122480.0,122470.0,3.42154888]
[1759558637766,0.00014194,122480.0,122470.0,4.41806888]
[1759558638868,0.00218194,122480.0,122470.0,4.41487474]
[1759558639072,0.0002,122510.0,122480.0,0.50329196]
[1759558639250,0.00034743,122510.0,122500.0,0.34]
[1759558639455,0.00034743,122510.0,122500.0,3.277019]
[1759558640489,0.00234743,122510.0,122500.0,3.277019]
[1759558640692,0.01238743,122510.0,122500.0,3.277019]
[1759558641021,0.01299715,122510.0,122500.0,3.277019]
[1759558641888,0.01099715,122510.0,122500.0,3.277019]
[1759558642095,0.01899715,122510.0,122500.0,3.043979]